[Event "Turniej 30-lecia Liceum im. Józefa Bema"]
[Site "Warsaw, Poland"]
[Date "????.??.??"]
[Round "5.8"]
[White "Kazmierowski, Tymon"]
[Black "Dworakowski, Lukasz"]
[Result "0-1"]
[TimeControl "0:10:02"]
[WhiteElo "1575"]
[BlackElo "2185"]

1. d4 {[%clk 00:10:03]} Nf6 {[%clk 00:10:04]} {[%emt 00:00:01]} 2. c4 {[%clk
00:10:04]} g6 {[%clk 00:10:05]} {[%emt 00:00:02]} 3. Nc3 {[%clk 00:10:05]}
{[%emt 00:00:01]} Bg7 {[%clk 00:10:05]} {[%emt 00:00:02]} 4. e4 {[%clk
00:10:06]} {[%emt 00:00:01]} d6 {[%clk 00:10:05]} {[%emt 00:00:02]} 5. Nf3
{[%clk 00:10:07]} O-O {[%clk 00:10:06]} {[%emt 00:00:02]} 6. Be2 {[%clk
00:10:07]} Nbd7 {[%clk 00:10:01]} {[%emt 00:00:07]} 7. O-O {[%clk 00:10:06]}
{[%emt 00:00:04]} e5 {[%clk 00:10:03]} 8. Be3 {[%clk 00:10:06]} {[%emt
00:00:02]} Ng4 {[%clk 00:09:58]} {[%emt 00:00:08]} 9. Bg5 {[%clk 00:10:07]}
{[%emt 00:00:01]} f6 {[%clk 00:09:59]} {[%emt 00:00:01]} 10. Bh4 {[%clk
00:10:07]} {[%emt 00:00:01]} c6 {[%clk 00:09:47]} {[%emt 00:00:14]} 11. h3
{[%clk 00:10:04]} {[%emt 00:00:05]} Nh6 {[%clk 00:09:49]} 12. c5 {[%clk
00:09:55]} {[%emt 00:00:12]} g5 {[%clk 00:09:13]} {[%emt 00:00:38]} 13. Bg3
{[%clk 00:09:52]} {[%emt 00:00:05]} dxc5 {[%clk 00:08:58]} {[%emt 00:00:17]} 14.
d5 {[%clk 00:08:58]} {[%emt 00:00:56]} Nb6 {[%clk 00:07:02]} {[%emt 00:01:57]}
15. Qb3 {[%clk 00:08:09]} {[%emt 00:00:51]} cxd5 {[%clk 00:06:35]} {[%emt
00:00:30]} 16. exd5 {[%clk 00:07:43]} {[%emt 00:00:28]} Nf7 {[%clk 00:06:27]}
{[%emt 00:00:10]} 17. Ne4 {[%clk 00:07:27]} {[%emt 00:00:18]} Qxd5 {[%clk
00:05:19]} {[%emt 00:01:11]} 18. Qxd5 {[%clk 00:07:04]} {[%emt 00:00:25]} Nxd5
{[%clk 00:05:20]} {[%emt 00:00:01]} 19. Nxc5 {[%clk 00:07:03]} {[%emt
00:00:03]} b6 {[%clk 00:04:43]} {[%emt 00:00:39]} 20. Ne4 {[%clk 00:06:52]}
{[%emt 00:00:12]} Bb7 {[%clk 00:04:31]} {[%emt 00:00:15]} 21. Bc4 {[%clk
00:06:37]} {[%emt 00:00:17]} Rfd8 {[%clk 00:03:40]} {[%emt 00:00:54]} 22. Rfd1
{[%clk 00:06:34]} {[%emt 00:00:05]} h6 {[%clk 00:03:12]} {[%emt 00:00:30]} 23.
Bh2 {[%clk 00:04:54]} {[%emt 00:01:41]} f5 {[%clk 00:02:42]} {[%emt 00:00:33]}
24. Ng3 {[%clk 00:04:52]} {[%emt 00:00:04]} Ne7 {[%clk 00:02:05]} {[%emt
00:00:39]} 25. Nh5 {[%clk 00:04:34]} {[%emt 00:00:20]} Bxf3 {[%clk 00:01:20]}
{[%emt 00:00:47]} 26. gxf3 {[%clk 00:04:29]} {[%emt 00:00:07]} f4 {[%clk
00:01:04]} {[%emt 00:00:18]} 27. Nxg7 {[%clk 00:04:02]} {[%emt 00:00:29]} Kxg7
{[%clk 00:01:04]} {[%emt 00:00:02]} 28. Re1 {[%clk 00:04:03]} Ng6 {[%clk
00:00:50]} {[%emt 00:00:17]} 29. Rad1 {[%clk 00:03:54]} {[%emt 00:00:11]} Rxd1
{[%clk 00:00:50]} {[%emt 00:00:03]} 30. Rxd1 {[%clk 00:03:55]} Rd8 {[%clk
00:00:51]} {[%emt 00:00:01]} 31. Rc1 {[%clk 00:03:50]} {[%emt 00:00:07]} Rd2
{[%clk 00:00:51]} {[%emt 00:00:01]} 32. Bb3 {[%clk 00:03:52]} {[%emt 00:00:01]}
Rd7 {[%clk 00:00:48]} {[%emt 00:00:05]} 33. Rc6 {[%clk 00:03:44]} {[%emt
00:00:09]} Nh4 {[%clk 00:00:48]} {[%emt 00:00:02]} 34. Rc8 {[%clk 00:03:27]}
{[%emt 00:00:19]} Nxf3+ {[%clk 00:00:48]} {[%emt 00:00:02]} 35. Kg2 {[%clk
00:03:28]} Nh4+ {[%clk 00:00:47]} {[%emt 00:00:03]} 36. Kg1 {[%clk 00:03:26]}
{[%emt 00:00:03]} e4 {[%clk 00:00:48]} {[%emt 00:00:02]} 37. Kf1 {[%clk
00:03:16]} {[%emt 00:00:11]} Nf5 {[%clk 00:00:43]} {[%emt 00:00:08]} 38. Be6
{[%clk 00:03:06]} {[%emt 00:00:13]} Rd1+ {[%clk 00:00:32]} {[%emt 00:00:13]} 39.
Ke2 {[%clk 00:03:07]} Rh1 {[%clk 00:00:33]} {[%emt 00:00:02]} 40. Bxf4 {[%clk
00:02:53]} {[%emt 00:00:16]} gxf4 {[%clk 00:00:33]} {[%emt 00:00:02]} 41. Bxf5
{[%clk 00:02:54]} {[%emt 00:00:01]} Nd6 {[%clk 00:00:34]} 42. Rc7+ {[%clk
00:02:54]} {[%emt 00:00:02]} Kf6 {[%clk 00:00:35]} 43. Bg4 {[%clk 00:02:47]}
{[%emt 00:00:09]} Rb1 {[%clk 00:00:35]} {[%emt 00:00:02]} 44. Rc2 {[%clk
00:02:41]} {[%emt 00:00:08]} Nb5 {[%clk 00:00:35]} {[%emt 00:00:01]} 45. Rd2
{[%clk 00:02:39]} {[%emt 00:00:05]} Ke5 {[%clk 00:00:37]} 46. a4 {[%clk
00:02:39]} {[%emt 00:00:03]} Nd4+ {[%clk 00:00:38]} 47. Rxd4 Kxd4 {[%clk
00:00:39]} 0-1

[Event "Turniej 30-lecia Liceum im. Józefa Bema"]
[Site "Warsaw, Poland"]
[Date "????.??.??"]
[Round "5.10"]
[White "Basiaga, Sebastian"]
[Black "Klim, Filip"]
[Result "1/2-1/2"]
[TimeControl "0:10:02"]
[WhiteElo "1771"]
[BlackElo "1577"]

1. e4 {[%clk 00:10:02]} {[%emt 00:00:01]} e5 {[%clk 00:10:02]} {[%emt
00:00:02]} 2. Nf3 {[%clk 00:10:01]} {[%emt 00:00:03]} Nc6 {[%clk 00:10:03]}
{[%emt 00:00:02]} 3. Bb5 {[%clk 00:10:00]} {[%emt 00:00:03]} a6 {[%clk
00:10:04]} {[%emt 00:00:01]} 4. Ba4 {[%clk 00:10:01]} Nf6 {[%clk 00:10:04]}
{[%emt 00:00:02]} 5. d3 {[%clk 00:10:01]} b5 {[%clk 00:10:03]} {[%emt
00:00:04]} 6. Bb3 {[%clk 00:10:01]} {[%emt 00:00:02]} Bc5 {[%clk 00:10:02]}
{[%emt 00:00:03]} 7. c3 {[%clk 00:10:00]} {[%emt 00:00:02]} d6 {[%clk
00:09:55]} {[%emt 00:00:10]} 8. O-O {[%clk 00:09:59]} {[%emt 00:00:03]} h6
{[%clk 00:09:54]} {[%emt 00:00:03]} 9. Re1 {[%clk 00:09:58]} {[%emt 00:00:03]}
Bb6 {[%clk 00:09:50]} {[%emt 00:00:06]} 10. h3 {[%clk 00:09:33]} {[%emt
00:00:27]} O-O {[%clk 00:09:35]} {[%emt 00:00:17]} 11. Nbd2 {[%clk 00:09:26]}
{[%emt 00:00:08]} Ne7 {[%clk 00:09:28]} {[%emt 00:00:10]} 12. Nh4 {[%clk
00:08:43]} {[%emt 00:00:45]} Kh7 {[%clk 00:08:54]} {[%emt 00:00:37]} 13. Nf1
{[%clk 00:08:33]} {[%emt 00:00:12]} Ng6 {[%clk 00:08:47]} {[%emt 00:00:09]} 14.
Nf5 {[%clk 00:07:39]} {[%emt 00:00:56]} Bxf5 {[%clk 00:06:48]} {[%emt
00:02:01]} 15. exf5 {[%clk 00:07:39]} {[%emt 00:00:02]} Ne7 {[%clk 00:06:14]}
{[%emt 00:00:37]} 16. Ng3 {[%clk 00:07:20]} {[%emt 00:00:21]} Qd7 {[%clk
00:05:57]} {[%emt 00:00:18]} 17. d4 {[%clk 00:07:01]} {[%emt 00:00:21]} exd4
{[%clk 00:05:00]} {[%emt 00:01:00]} 18. cxd4 {[%clk 00:07:00]} {[%emt
00:00:03]} Ned5 {[%clk 00:04:40]} {[%emt 00:00:22]} 19. Qf3 {[%clk 00:06:36]}
{[%emt 00:00:27]} c6 {[%clk 00:04:09]} {[%emt 00:00:33]} 20. Be3 {[%clk
00:06:14]} {[%emt 00:00:24]} Rfe8 {[%clk 00:03:23]} {[%emt 00:00:48]} 21. Rac1
{[%clk 00:05:31]} {[%emt 00:00:45]} Rac8 {[%clk 00:03:05]} {[%emt 00:00:19]} 22.
Nh5 {[%clk 00:04:04]} {[%emt 00:01:29]} Rc7 {[%clk 00:01:05]} {[%emt 00:02:02]}
23. Bxd5 {[%clk 00:02:45]} {[%emt 00:01:20]} Nxd5 {[%clk 00:00:52]} {[%emt
00:00:15]} 24. Qg4 {[%clk 00:02:26]} {[%emt 00:00:20]} g6 {[%clk 00:00:19]}
{[%emt 00:00:36]} 25. fxg6+ {[%clk 00:02:12]} {[%emt 00:00:16]} fxg6 {[%clk
00:00:19]} {[%emt 00:00:02]} 26. Qxd7+ {[%clk 00:01:37]} {[%emt 00:00:37]} Rxd7
{[%clk 00:00:20]} 27. Ng3 {[%clk 00:00:48]} {[%emt 00:00:51]} Rc7 {[%clk
00:00:22]} 28. a3 {[%clk 00:00:32]} {[%emt 00:00:19]} Ree7 {[%clk 00:00:19]}
{[%emt 00:00:04]} 29. b4 {[%clk 00:00:32]} {[%emt 00:00:03]} Kg7 {[%clk
00:00:18]} {[%emt 00:00:03]} 30. Nf1 {[%clk 00:00:12]} {[%emt 00:00:22]} a5
{[%clk 00:00:16]} {[%emt 00:00:04]} 31. Rb1 {[%clk 00:00:06]} {[%emt 00:00:08]}
axb4 {[%clk 00:00:10]} {[%emt 00:00:08]} 32. axb4 {[%clk 00:00:07]} Ra7 {[%clk
00:00:10]} {[%emt 00:00:02]} 33. Rec1 {[%clk 00:00:07]} {[%emt 00:00:02]} Rec7
{[%clk 00:00:10]} {[%emt 00:00:02]} 34. Nd2 {[%clk 00:00:05]} {[%emt 00:00:04]}
Ra2 {[%clk 00:00:10]} {[%emt 00:00:01]} 35. Ne4 {[%clk 00:00:06]} {[%emt
00:00:02]} Nxe3 {[%clk 00:00:07]} {[%emt 00:00:05]} 36. fxe3 {[%clk 00:00:07]}
d5 {[%clk 00:00:08]} {[%emt 00:00:02]} 37. Nc3 {[%clk 00:00:03]} {[%emt
00:00:05]} Raa7 {[%clk 00:00:07]} {[%emt 00:00:02]} 38. Ra1 {[%clk 00:00:04]}
{[%emt 00:00:02]} Kf6 {[%clk 00:00:07]} {[%emt 00:00:02]} 39. Kf2 {[%clk
00:00:05]} {[%emt 00:00:02]} Ke6 {[%clk 00:00:07]} {[%emt 00:00:02]} 40. Ke2
{[%clk 00:00:06]} Rxa1 {[%clk 00:00:07]} {[%emt 00:00:02]} 41. Rxa1 {[%clk
00:00:07]} {[%emt 00:00:01]} Ra7 {[%clk 00:00:08]} 42. Rxa7 {[%clk 00:00:08]}
{[%emt 00:00:02]} Bxa7 {[%clk 00:00:10]} 43. Nd1 {[%clk 00:00:05]} {[%emt
00:00:05]} Kf5 {[%clk 00:00:10]} {[%emt 00:00:01]} 44. Kf3 {[%clk 00:00:07]}
{[%emt 00:00:01]} Bb8 {[%clk 00:00:11]} 45. Nb2 {[%clk 00:00:07]} {[%emt
00:00:02]} Bd6 {[%clk 00:00:12]} 46. Nd3 {[%clk 00:00:08]} g5 {[%clk 00:00:12]}
{[%emt 00:00:03]} 47. g4+ {[%clk 00:00:08]} {[%emt 00:00:02]} Ke6 {[%clk
00:00:12]} {[%emt 00:00:01]} 48. e4 {[%clk 00:00:08]} {[%emt 00:00:02]} dxe4+
{[%clk 00:00:12]} {[%emt 00:00:02]} 49. Kxe4 {[%clk 00:00:09]} {[%emt
00:00:01]} Be7 {[%clk 00:00:12]} {[%emt 00:00:02]} 50. Nc5+ {[%clk 00:00:07]}
{[%emt 00:00:04]} Kf6 {[%clk 00:00:08]} {[%emt 00:00:07]} 51. d5 {[%clk
00:00:08]} cxd5+ {[%clk 00:00:07]} {[%emt 00:00:03]} 52. Kxd5 {[%clk 00:00:09]}
Bf8 {[%clk 00:00:05]} {[%emt 00:00:04]} 53. Kc6 {[%clk 00:00:10]} Ke5 {[%clk
00:00:06]} 54. Kxb5 {[%clk 00:00:11]} {[%emt 00:00:02]} Kd4 {[%clk 00:00:06]}
{[%emt 00:00:02]} 55. Kc6 {[%clk 00:00:09]} {[%emt 00:00:05]} Ke3 {[%clk
00:00:05]} {[%emt 00:00:03]} 56. b5 {[%clk 00:00:09]} {[%emt 00:00:01]} Be7
{[%clk 00:00:05]} {[%emt 00:00:02]} 57. b6 {[%clk 00:00:10]} {[%emt 00:00:01]}
Bf6 {[%clk 00:00:05]} {[%emt 00:00:01]} 58. Nd7 {[%clk 00:00:10]} {[%emt
00:00:02]} Bd4 {[%clk 00:00:05]} {[%emt 00:00:03]} 59. b7 {[%clk 00:00:11]} Ba7
{[%clk 00:00:06]} 60. Kd5 {[%clk 00:00:09]} {[%emt 00:00:04]} Kf3 {[%clk
00:00:06]} 61. Ke6 {[%clk 00:00:09]} {[%emt 00:00:03]} Kg3 {[%clk 00:00:07]} 62.
Kf5 {[%clk 00:00:10]} Kxh3 {[%clk 00:00:07]} {[%emt 00:00:02]} 63. b8=Q {[%clk
00:00:10]} {[%emt 00:00:02]} Bxb8 {[%clk 00:00:08]} {[%emt 00:00:02]} 64. Nxb8
{[%clk 00:00:11]} Kh4 {[%clk 00:00:09]} {[%emt 00:00:01]} 65. Nd7 {[%clk
00:00:09]} {[%emt 00:00:04]} h5 {[%clk 00:00:10]} {[%emt 00:00:01]} 66. Ne5
{[%clk 00:00:08]} {[%emt 00:00:02]} hxg4 {[%clk 00:00:11]} {[%emt 00:00:01]}
1/2-1/2

[Event "Turniej 30-lecia Liceum im. Józefa Bema"]
[Site "Warsaw, Poland"]
[Date "????.??.??"]
[Round "6.1"]
[White "Owczarzak, Jerzy"]
[Black "Adamski, Jan"]
[Result "1/2-1/2"]
[TimeControl "0:10:02"]
[WhiteElo "2264"]
[BlackElo "2127"]

1. b4 {[%clk 00:10:02]} {[%emt 00:00:01]} e5 {[%clk 00:10:00]} {[%emt
00:00:04]} 2. Bb2 {[%clk 00:10:03]} Bxb4 {[%clk 00:10:01]} {[%emt 00:00:02]} 3.
Bxe5 {[%clk 00:10:04]} Nf6 {[%clk 00:10:01]} {[%emt 00:00:01]} 4. Nf3 {[%clk
00:10:05]} O-O {[%clk 00:10:00]} {[%emt 00:00:04]} 5. e3 {[%clk 00:10:06]} d5
{[%clk 00:09:58]} {[%emt 00:00:04]} 6. Be2 {[%clk 00:10:06]} {[%emt 00:00:02]}
Re8 {[%clk 00:09:58]} {[%emt 00:00:03]} 7. O-O {[%clk 00:10:06]} {[%emt
00:00:03]} c5 {[%clk 00:09:48]} {[%emt 00:00:11]} 8. d3 {[%clk 00:09:56]}
{[%emt 00:00:12]} Nc6 {[%clk 00:09:49]} {[%emt 00:00:01]} 9. Bb2 {[%clk
00:09:55]} {[%emt 00:00:03]} Ba5 {[%clk 00:09:35]} {[%emt 00:00:15]} 10. Nbd2
{[%clk 00:09:54]} {[%emt 00:00:03]} Bc7 {[%clk 00:09:29]} {[%emt 00:00:08]} 11.
c4 {[%clk 00:09:38]} {[%emt 00:00:18]} dxc4 {[%clk 00:09:12]} {[%emt 00:00:20]}
1/2-1/2

[Event "Turniej 30-lecia Liceum im. Józefa Bema"]
[Site "Warsaw, Poland"]
[Date "????.??.??"]
[Round "6.2"]
[White "Kedzierski, Slawomir"]
[Black "Babik, Tomasz"]
[Result "1/2-1/2"]
[TimeControl "0:10:02"]
[WhiteElo "2061"]
[BlackElo "2187"]

1. d4 {[%clk 00:10:02]} {[%emt 00:00:02]} Nf6 {[%clk 00:10:02]} {[%emt
00:00:03]} 2. Nf3 {[%clk 00:10:03]} {[%emt 00:00:02]} d5 {[%clk 00:10:02]}
{[%emt 00:00:01]} 3. c4 {[%clk 00:10:03]} {[%emt 00:00:01]} e6 {[%clk
00:10:03]} {[%emt 00:00:02]} 4. Nc3 {[%clk 00:10:04]} Be7 {[%clk 00:10:01]}
{[%emt 00:00:04]} 5. Bg5 {[%clk 00:10:04]} {[%emt 00:00:02]} O-O {[%clk
00:09:59]} {[%emt 00:00:05]} 6. e3 {[%clk 00:10:05]} h6 {[%clk 00:09:58]}
{[%emt 00:00:03]} 7. Bh4 {[%clk 00:10:05]} {[%emt 00:00:01]} b6 {[%clk
00:09:48]} {[%emt 00:00:13]} 8. cxd5 {[%clk 00:10:04]} {[%emt 00:00:03]} Nxd5
{[%clk 00:09:39]} {[%emt 00:00:10]} 9. Bxe7 {[%clk 00:10:04]} {[%emt 00:00:03]}
Qxe7 {[%clk 00:09:29]} {[%emt 00:00:13]} 10. Be2 {[%clk 00:09:46]} {[%emt
00:00:20]} Nxc3 {[%clk 00:09:29]} {[%emt 00:00:02]} 11. bxc3 {[%clk 00:09:47]}
{[%emt 00:00:01]} c5 {[%clk 00:09:30]} 12. O-O {[%clk 00:09:41]} {[%emt
00:00:08]} Bb7 {[%clk 00:09:31]} {[%emt 00:00:02]} 13. Qa4 {[%clk 00:09:28]}
{[%emt 00:00:14]} Rc8 {[%clk 00:08:24]} {[%emt 00:01:09]} 14. Rfc1 {[%clk
00:09:12]} {[%emt 00:00:18]} Nc6 {[%clk 00:07:34]} {[%emt 00:00:53]} 15. Qa3
{[%clk 00:08:55]} {[%emt 00:00:19]} Na5 {[%clk 00:07:10]} {[%emt 00:00:26]} 16.
Ne5 {[%clk 00:08:36]} {[%emt 00:00:20]} Nc6 {[%clk 00:06:06]} {[%emt 00:01:07]}
17. Nd3 {[%clk 00:07:52]} {[%emt 00:00:45]} cxd4 {[%clk 00:06:05]} {[%emt
00:00:04]} 18. Qxe7 {[%clk 00:07:51]} {[%emt 00:00:02]} Nxe7 {[%clk 00:06:06]}
{[%emt 00:00:01]} 19. cxd4 {[%clk 00:07:48]} {[%emt 00:00:05]} Rxc1+ {[%clk
00:05:54]} {[%emt 00:00:15]} 20. Rxc1 {[%clk 00:07:49]} Rc8 {[%clk 00:05:55]}
{[%emt 00:00:01]} 21. Rxc8+ {[%clk 00:07:36]} {[%emt 00:00:14]} Nxc8 {[%clk
00:05:53]} {[%emt 00:00:05]} 22. Ne5 {[%clk 00:07:13]} {[%emt 00:00:25]} Kf8
{[%clk 00:05:24]} {[%emt 00:00:31]} 23. f3 {[%clk 00:07:01]} {[%emt 00:00:13]}
Nd6 {[%clk 00:04:34]} {[%emt 00:00:53]} 24. Kf2 {[%clk 00:06:50]} {[%emt
00:00:12]} Bd5 {[%clk 00:04:15]} {[%emt 00:00:21]} 25. a3 {[%clk 00:06:43]}
{[%emt 00:00:10]} f6 {[%clk 00:04:08]} {[%emt 00:00:09]} 26. Ng6+ {[%clk
00:06:30]} {[%emt 00:00:14]} Kf7 {[%clk 00:04:07]} {[%emt 00:00:04]} 27. Nf4
{[%clk 00:06:30]} {[%emt 00:00:02]} Bc4 {[%clk 00:04:07]} {[%emt 00:00:02]} 28.
Bd1 {[%clk 00:06:06]} {[%emt 00:00:25]} b5 {[%clk 00:03:58]} {[%emt 00:00:12]}
29. e4 {[%clk 00:05:32]} {[%emt 00:00:35]} e5 {[%clk 00:03:35]} {[%emt
00:00:25]} 30. dxe5 {[%clk 00:05:17]} {[%emt 00:00:17]} fxe5 {[%clk 00:03:36]}
{[%emt 00:00:01]} 31. Nh5 {[%clk 00:03:50]} {[%emt 00:01:28]} a5 {[%clk
00:03:11]} {[%emt 00:00:28]} 32. g4 {[%clk 00:02:50]} {[%emt 00:01:02]} Be6
{[%clk 00:02:48]} {[%emt 00:00:25]} 33. Ke1 {[%clk 00:01:52]} {[%emt 00:00:59]}
a4 {[%clk 00:01:54]} {[%emt 00:00:57]} 34. Kd2 {[%clk 00:00:57]} {[%emt
00:00:57]} Nc4+ {[%clk 00:01:54]} {[%emt 00:00:02]} 35. Kc3 {[%clk 00:00:58]}
Nxa3 {[%clk 00:01:55]} {[%emt 00:00:01]} 36. Kb4 {[%clk 00:00:52]} {[%emt
00:00:06]} Nb1 {[%clk 00:01:42]} {[%emt 00:00:17]} 37. Bc2 {[%clk 00:00:38]}
{[%emt 00:00:15]} Nd2 {[%clk 00:01:38]} {[%emt 00:00:06]} 38. Bd1 {[%clk
00:00:34]} {[%emt 00:00:06]} Bb3 {[%clk 00:01:07]} {[%emt 00:00:33]} 39. Be2
{[%clk 00:00:22]} {[%emt 00:00:14]} Bc4 {[%clk 00:01:03]} {[%emt 00:00:06]} 40.
Bd1 {[%clk 00:00:22]} {[%emt 00:00:02]} Be6 {[%clk 00:00:17]} {[%emt 00:00:49]}
41. Be2 {[%clk 00:00:10]} {[%emt 00:00:14]} Nc4 {[%clk 00:00:13]} {[%emt
00:00:06]} 42. Ng3 {[%clk 00:00:08]} {[%emt 00:00:05]} a3 {[%clk 00:00:11]}
{[%emt 00:00:04]} 43. Bxc4 {[%clk 00:00:09]} Bxc4 {[%clk 00:00:09]} {[%emt
00:00:04]} 44. Kxa3 {[%clk 00:00:10]} g6 {[%clk 00:00:07]} {[%emt 00:00:03]} 45.
Kb4 {[%clk 00:00:11]} {[%emt 00:00:02]} Ke6 {[%clk 00:00:08]} 46. Kc5 {[%clk
00:00:12]} Kf6 {[%clk 00:00:08]} {[%emt 00:00:03]} 47. h4 {[%clk 00:00:13]} Ke6
{[%clk 00:00:06]} {[%emt 00:00:04]} 48. Nh1 {[%clk 00:00:14]} Be2 {[%clk
00:00:06]} {[%emt 00:00:02]} 49. Nf2 {[%clk 00:00:13]} {[%emt 00:00:03]} Bxf3
{[%clk 00:00:07]} {[%emt 00:00:01]} 50. Kxb5 {[%clk 00:00:14]} {[%emt
00:00:01]} Kd6 {[%clk 00:00:08]} {[%emt 00:00:02]} 51. Kb6 {[%clk 00:00:14]}
{[%emt 00:00:01]} g5 {[%clk 00:00:07]} {[%emt 00:00:02]} 52. hxg5 {[%clk
00:00:15]} {[%emt 00:00:01]} hxg5 {[%clk 00:00:09]} 53. Kb5 {[%clk 00:00:16]}
{[%emt 00:00:02]} Be2+ {[%clk 00:00:09]} {[%emt 00:00:01]} 1/2-1/2

[Event "Turniej 30-lecia Liceum im. Józefa Bema"]
[Site "Warsaw, Poland"]
[Date "????.??.??"]
[Round "6.3"]
[White "Szymczak, Rafal"]
[Black "Maciaga, Marcin"]
[Result "0-1"]
[TimeControl "0:10:02"]
[WhiteElo "2021"]
[BlackElo "2159"]

1. e4 {[%clk 00:10:03]} {[%emt 00:00:01]} c5 {[%clk 00:10:03]} {[%emt
00:00:01]} 2. f4 {[%clk 00:10:03]} {[%emt 00:00:03]} g6 {[%clk 00:10:02]}
{[%emt 00:00:03]} 3. Nf3 {[%clk 00:10:03]} {[%emt 00:00:01]} Bg7 {[%clk
00:10:02]} {[%emt 00:00:02]} 4. d3 {[%clk 00:09:42]} {[%emt 00:00:24]} Nc6
{[%clk 00:10:02]} {[%emt 00:00:02]} 5. g3 {[%clk 00:09:37]} {[%emt 00:00:07]}
e6 {[%clk 00:09:51]} {[%emt 00:00:13]} 6. Bg2 {[%clk 00:09:33]} {[%emt
00:00:05]} Nge7 {[%clk 00:09:51]} {[%emt 00:00:02]} 7. O-O {[%clk 00:09:10]}
{[%emt 00:00:23]} d5 {[%clk 00:09:50]} {[%emt 00:00:02]} 8. c3 {[%clk
00:08:47]} {[%emt 00:00:27]} O-O {[%clk 00:09:19]} {[%emt 00:00:33]} 9. Be3
{[%clk 00:07:49]} {[%emt 00:01:00]} b6 {[%clk 00:09:06]} {[%emt 00:00:16]} 10.
Bf2 {[%clk 00:07:03]} {[%emt 00:00:48]} Ba6 {[%clk 00:09:00]} {[%emt 00:00:07]}
11. Re1 {[%clk 00:06:37]} {[%emt 00:00:29]} dxe4 {[%clk 00:08:38]} {[%emt
00:00:24]} 12. dxe4 {[%clk 00:06:33]} {[%emt 00:00:06]} Qc7 {[%clk 00:07:29]}
{[%emt 00:01:11]} 13. e5 {[%clk 00:05:26]} {[%emt 00:01:09]} Rfd8 {[%clk
00:07:16]} {[%emt 00:00:14]} 14. Qa4 {[%clk 00:05:22]} {[%emt 00:00:06]} Bd3
{[%clk 00:06:51]} {[%emt 00:00:26]} 15. Nbd2 {[%clk 00:03:36]} {[%emt
00:01:49]} a5 {[%clk 00:06:30]} {[%emt 00:00:23]} 16. c4 {[%clk 00:03:11]}
{[%emt 00:00:27]} Nb4 {[%clk 00:06:13]} {[%emt 00:00:19]} 17. Rac1 {[%clk
00:02:52]} {[%emt 00:00:21]} Bf5 {[%clk 00:05:56]} {[%emt 00:00:18]} 18. Nh4
{[%clk 00:01:45]} {[%emt 00:01:09]} Rab8 {[%clk 00:05:34]} {[%emt 00:00:25]} 19.
Nxf5 {[%clk 00:01:31]} {[%emt 00:00:16]} Nxf5 {[%clk 00:05:03]} {[%emt
00:00:33]} 20. Red1 {[%clk 00:01:24]} {[%emt 00:00:10]} Nd3 {[%clk 00:05:02]}
{[%emt 00:00:03]} 21. Rb1 {[%clk 00:01:16]} {[%emt 00:00:11]} Nd4 {[%clk
00:03:22]} {[%emt 00:01:41]} 22. Bxd4 {[%clk 00:01:11]} {[%emt 00:00:08]} cxd4
{[%clk 00:03:05]} {[%emt 00:00:18]} 23. Ne4 {[%clk 00:01:08]} {[%emt 00:00:04]}
Nc5 {[%clk 00:02:57]} {[%emt 00:00:11]} 24. Nxc5 {[%clk 00:00:52]} {[%emt
00:00:19]} bxc5 {[%clk 00:02:50]} {[%emt 00:00:08]} 25. b3 {[%clk 00:00:51]}
{[%emt 00:00:03]} Bf8 {[%clk 00:02:34]} {[%emt 00:00:17]} 26. Rd3 {[%clk
00:00:47]} {[%emt 00:00:06]} Rb4 {[%clk 00:02:29]} {[%emt 00:00:07]} 27. Qc6
{[%clk 00:00:45]} {[%emt 00:00:05]} Qa7 {[%clk 00:02:10]} {[%emt 00:00:20]} 28.
a4 {[%clk 00:00:09]} {[%emt 00:00:39]} Rdb8 {[%clk 00:02:05]} {[%emt 00:00:07]}
0-1